[Event "Early-Titled-Tuesday-Blitz-October-24-2023"]
[Site "Chess.com"]
[Date "2023.10.24"]
[Round "4"]
[White "balachess2006"]
[Black "SlippperyWhenWet"]
[Result "1-0"]
[WhiteElo "2562"]
[BlackElo "2346"]
[TimeControl "180+1"]
[EndTime "8:35:43 PDT"]
[Termination "balachess2006 won by checkmate"]

1. Nf3 {[%clk 0:03:00.9]} 1... Nf6 {[%clk 0:02:59.3]} 2. c4 {[%clk 0:03:01]}
2... b6 {[%clk 0:02:59.4]} 3. g3 {[%clk 0:02:58.5]} 3... c5 {[%clk 0:02:59.7]}
4. Bg2 {[%clk 0:02:59.4]} 4... Bb7 {[%clk 0:03:00.2]} 5. O-O {[%clk 0:03:00.3]}
5... e6 {[%clk 0:03:00.5]} 6. Nc3 {[%clk 0:03:00.8]} 6... Be7 {[%clk 0:03:00.6]}
7. b3 {[%clk 0:03:01.2]} 7... d6 {[%clk 0:03:00.8]} 8. Bb2 {[%clk 0:03:02.1]}
8... Nbd7 {[%clk 0:03:01.3]} 9. Rc1 {[%clk 0:03:01.2]} 9... a6 {[%clk
0:03:01.5]} 10. e3 {[%clk 0:03:01.7]} 10... O-O {[%clk 0:03:01.5]} 11. d4 {[%clk
0:03:02.3]} 11... cxd4 {[%clk 0:03:01.7]} 12. exd4 {[%clk 0:03:03.2]} 12... Rc8
{[%clk 0:03:02]} 13. Re1 {[%clk 0:03:03.4]} 13... Re8 {[%clk 0:03:02.3]} 14. h3
{[%clk 0:02:57.6]} 14... d5 {[%clk 0:03:02.6]} 15. Ne5 {[%clk 0:02:56.8]} 15...
Ba8 {[%clk 0:02:53.3]} 16. cxd5 {[%clk 0:02:55.9]} 16... Nxd5 {[%clk 0:02:36]}
17. Nxd5 {[%clk 0:02:54.8]} 17... Bxd5 {[%clk 0:02:34.9]} 18. Rxc8 {[%clk
0:02:20.1]} 18... Qxc8 {[%clk 0:02:33.6]} 19. Bxd5 {[%clk 0:02:20.1]} 19... exd5
{[%clk 0:02:33.2]} 20. Qh5 {[%clk 0:02:19]} 20... Nxe5 {[%clk 0:02:30.1]} 21.
Qxe5 {[%clk 0:02:19.9]} 21... Kf8 {[%clk 0:02:11.9]} 22. Qxd5 {[%clk 0:02:19.7]}
22... Qxh3 {[%clk 0:02:10.1]} 23. Qe5 {[%clk 0:01:52]} 23... Qd7 {[%clk
0:01:27.5]} 24. d5 {[%clk 0:01:51.5]} 24... Bf6 {[%clk 0:01:03]} 25. Ba3+ {[%clk
0:01:50.5]} 25... Be7 {[%clk 0:01:03.2]} 26. d6 {[%clk 0:01:49.4]} 26... Bf6
{[%clk 0:00:20.5]} 27. Qxe8+ {[%clk 0:01:47.6]} 27... Qxe8 {[%clk 0:00:21.3]}
28. d7+ {[%clk 0:01:47.6]} 28... Qe7 {[%clk 0:00:16.5]} 29. Rxe7 {[%clk
0:01:47.1]} 29... Bxe7 {[%clk 0:00:16]} 30. d8=R# {[%clk 0:01:45.8]} 1-0

[Event "Early-Titled-Tuesday-Blitz-October-24-2023"]
[Site "Chess.com"]
[Date "2023.10.24"]
[Round "4"]
[White "Sokoloco"]
[Black "js20000"]
[Result "1-0"]
[WhiteElo "2734"]
[BlackElo "2908"]
[TimeControl "180+1"]
[EndTime "8:35:53 PDT"]
[Termination "Sokoloco won by resignation"]

1. b3 {[%clk 0:03:00.9]} 1... e5 {[%clk 0:02:59.3]} 2. Bb2 {[%clk 0:03:01.8]}
2... Nc6 {[%clk 0:02:59.6]} 3. e3 {[%clk 0:03:02.6]} 3... Nf6 {[%clk 0:02:55.6]}
4. Nf3 {[%clk 0:03:03]} 4... Bd6 {[%clk 0:02:53.9]} 5. d4 {[%clk 0:03:02.7]}
5... exd4 {[%clk 0:02:52.8]} 6. exd4 {[%clk 0:03:03.6]} 6... O-O {[%clk
0:02:52.8]} 7. Be2 {[%clk 0:03:04.4]} 7... Re8 {[%clk 0:02:52.4]} 8. O-O {[%clk
0:03:05.1]} 8... Bf8 {[%clk 0:02:52.7]} 9. d5 {[%clk 0:03:05.8]} 9... Nb8 {[%clk
0:02:52.9]} 10. c4 {[%clk 0:03:05.1]} 10... Bc5 {[%clk 0:02:51.3]} 11. Nc3
{[%clk 0:03:02.8]} 11... d6 {[%clk 0:02:49.9]} 12. Na4 {[%clk 0:02:58.7]} 12...
Bg4 {[%clk 0:02:48.3]} 13. Nxc5 {[%clk 0:02:56.2]} 13... dxc5 {[%clk 0:02:49.2]}
14. Re1 {[%clk 0:02:45.8]} 14... Qd6 {[%clk 0:02:45.6]} 15. h3 {[%clk
0:02:36.6]} 15... Bxf3 {[%clk 0:02:44.2]} 16. Bxf3 {[%clk 0:02:37.5]} 16... Nbd7
{[%clk 0:02:44.2]} 17. g3 {[%clk 0:02:18.5]} 17... Rxe1+ {[%clk 0:02:33.3]} 18.
Qxe1 {[%clk 0:02:18.3]} 18... Re8 {[%clk 0:02:33.9]} 19. Qd2 {[%clk 0:02:16.7]}
19... c6 {[%clk 0:02:32.4]} 20. Rd1 {[%clk 0:02:09.2]} 20... cxd5 {[%clk
0:02:28.3]} 21. Bxd5 {[%clk 0:02:08.3]} 21... Nxd5 {[%clk 0:02:27.5]} 22. Qxd5
{[%clk 0:02:09.2]} 22... Qxd5 {[%clk 0:02:27.9]} 23. Rxd5 {[%clk 0:02:10.1]}
23... Re7 {[%clk 0:02:27.4]} 24. Ba3 {[%clk 0:02:01.1]} 24... b6 {[%clk
0:02:20.2]} 25. b4 {[%clk 0:01:55.8]} 25... f6 {[%clk 0:02:14.1]} 26. bxc5
{[%clk 0:01:50.6]} 26... bxc5 {[%clk 0:02:13.5]} 27. Bxc5 {[%clk 0:01:46.9]}
27... Nxc5 {[%clk 0:02:10.9]} 28. Rxc5 {[%clk 0:01:47.8]} 28... Kf7 {[%clk
0:02:10.3]} 29. Kg2 {[%clk 0:01:39.1]} 29... Kg6 {[%clk 0:02:07.7]} 30. Kf3
{[%clk 0:01:36.7]} 30... Re1 {[%clk 0:02:07.1]} 31. Rc7 {[%clk 0:01:11.3]} 31...
Rc1 {[%clk 0:02:07]} 32. Ke3 {[%clk 0:01:10.9]} 32... Rc3+ {[%clk 0:02:06.7]}
33. Kd4 {[%clk 0:01:07.5]} 33... Ra3 {[%clk 0:02:07.6]} 34. c5 {[%clk
0:01:04.1]} 34... Rxa2 {[%clk 0:02:08.2]} 35. c6 {[%clk 0:01:04.4]} 35... Rc2
{[%clk 0:02:02.6]} 36. Kd5 {[%clk 0:01:03.4]} 36... Rd2+ {[%clk 0:02:01.8]} 37.
Ke6 {[%clk 0:01:02.3]} 37... Re2+ {[%clk 0:02:01.5]} 38. Kd7 {[%clk 0:01:02.2]}
38... Rd2+ {[%clk 0:02:01.8]} 39. Kc8 {[%clk 0:01:02.4]} 39... Rxf2 {[%clk
0:02:01.7]} 40. Rxa7 {[%clk 0:01:00.6]} 40... Rf3 {[%clk 0:02:01.9]} 41. Ra4
{[%clk 0:01:00.2]} 41... h5 {[%clk 0:01:59]} 42. c7 {[%clk 0:01:00.1]} 42... Rc3
{[%clk 0:01:46]} 43. Rd4 {[%clk 0:00:51.2]} 43... Kf5 {[%clk 0:01:45.1]} 44. Kd7
{[%clk 0:00:51.7]} 44... Ke5 {[%clk 0:01:45.3]} 45. Rd6 {[%clk 0:00:49.9]} 45...
Ke4 {[%clk 0:01:44.6]} 46. Rc6 {[%clk 0:00:49.1]} 46... Rd3+ {[%clk 0:01:44.5]}
47. Ke7 {[%clk 0:00:47.7]} 1-0

[Event "Early-Titled-Tuesday-Blitz-October-24-2023"]
[Site "Chess.com"]
[Date "2023.10.24"]
[Round "4"]
[White "GatoRojo150"]
[Black "Nick12772"]
[Result "1-0"]
[WhiteElo "2598"]
[BlackElo "2375"]
[TimeControl "180+1"]
[EndTime "8:35:57 PDT"]
[Termination "GatoRojo150 won on time"]

1. e4 {[%clk 0:02:56.4]} 1... e6 {[%clk 0:03:00.2]} 2. d4 {[%clk 0:02:56.3]}
2... d5 {[%clk 0:03:01.1]} 3. Nc3 {[%clk 0:02:56.5]} 3... Bb4 {[%clk 0:03:00.9]}
4. e5 {[%clk 0:02:56.7]} 4... c5 {[%clk 0:03:01.4]} 5. a3 {[%clk 0:02:57.2]}
5... Bxc3+ {[%clk 0:03:02]} 6. bxc3 {[%clk 0:02:58.1]} 6... Ne7 {[%clk
0:03:02.4]} 7. Qg4 {[%clk 0:02:58.2]} 7... Kf8 {[%clk 0:03:02.5]} 8. Nh3 {[%clk
0:02:55.3]} 8... Qa5 {[%clk 0:03:02.2]} 9. Bd2 {[%clk 0:02:55]} 9... Qa4 {[%clk
0:03:02.5]} 10. Rc1 {[%clk 0:02:52.6]} 10... Nbc6 {[%clk 0:03:01.7]} 11. Nf4
{[%clk 0:02:46.2]} 11... Ng6 {[%clk 0:02:28.2]} 12. dxc5 {[%clk 0:02:32.8]}
12... Nxf4 {[%clk 0:01:59]} 13. Qxf4 {[%clk 0:02:33.7]} 13... Qa5 {[%clk
0:01:35.2]} 14. Bd3 {[%clk 0:02:10.7]} 14... Qxc5 {[%clk 0:01:30.4]} 15. O-O
{[%clk 0:02:10.6]} 15... Bd7 {[%clk 0:01:23]} 16. Rb1 {[%clk 0:02:08.4]} 16...
Na5 {[%clk 0:01:22.6]} 17. c4 {[%clk 0:02:07.4]} 17... Qc7 {[%clk 0:00:27.7]}
18. Bb4+ {[%clk 0:02:04.4]} 18... Kg8 {[%clk 0:00:27.3]} 19. Bd6 {[%clk
0:02:04.5]} 19... Qd8 {[%clk 0:00:20.5]} 20. cxd5 {[%clk 0:02:01.1]} 20... exd5
{[%clk 0:00:21.4]} 21. Qg3 {[%clk 0:02:01.2]} 21... Be6 {[%clk 0:00:16.3]} 22.
f4 {[%clk 0:02:01.2]} 22... Nc4 {[%clk 0:00:10.2]} 23. f5 {[%clk 0:02:01.2]}
23... Bd7 {[%clk 0:00:01.9]} 24. f6 {[%clk 0:02:01.3]} 24... g6 {[%clk
0:00:02.1]} 25. Qg5 {[%clk 0:01:58]} 25... Nxd6 {[%clk 0:00:01.8]} 26. exd6
{[%clk 0:01:54.4]} 26... Bc6 {[%clk 0:00:02]} 27. Rbe1 {[%clk 0:01:44.6]} 27...
Qxd6 {[%clk 0:00:01.8]} 28. Re7 {[%clk 0:01:44.6]} 28... Re8 {[%clk 0:00:01]}
29. Qh6 {[%clk 0:01:42.1]} 1-0

[Event "Early-Titled-Tuesday-Blitz-October-24-2023"]
[Site "Chess.com"]
[Date "2023.10.24"]
[Round "4"]
[White "UK_23"]
[Black "Kostya0705"]
[Result "0-1"]
[WhiteElo "2393"]
[BlackElo "2624"]
[TimeControl "180+1"]
[EndTime "8:35:57 PDT"]
[Termination "Kostya0705 won by resignation"]

1. e4 {[%clk 0:03:00.9]} 1... c5 {[%clk 0:02:59.3]} 2. c3 {[%clk 0:03:00.5]}
2... d5 {[%clk 0:02:59]} 3. exd5 {[%clk 0:03:00.5]} 3... Qxd5 {[%clk 0:02:59.9]}
4. d4 {[%clk 0:03:00.9]} 4... Nf6 {[%clk 0:02:59.2]} 5. Nf3 {[%clk 0:03:01.2]}
5... e6 {[%clk 0:02:56]} 6. Be3 {[%clk 0:02:57.1]} 6... cxd4 {[%clk 0:02:53.2]}
7. Qxd4 {[%clk 0:02:54.6]} 7... Nc6 {[%clk 0:02:48.1]} 8. Qxd5 {[%clk
0:02:45.7]} 8... Nxd5 {[%clk 0:02:49]} 9. Bg5 {[%clk 0:02:44.7]} 9... f6 {[%clk
0:02:48]} 10. Bh4 {[%clk 0:02:44.7]} 10... e5 {[%clk 0:02:45.1]} 11. Nbd2 {[%clk
0:02:44.2]} 11... f5 {[%clk 0:02:40.6]} 12. Bb5 {[%clk 0:02:40.5]} 12... e4
{[%clk 0:02:39.4]} 13. Ne5 {[%clk 0:02:38.2]} 13... Bd7 {[%clk 0:02:33.4]} 14.
Nxd7 {[%clk 0:02:38.1]} 14... Kxd7 {[%clk 0:02:34.3]} 15. O-O-O {[%clk
0:02:38.2]} 15... Ke6 {[%clk 0:02:30.4]} 16. Bxc6 {[%clk 0:02:31.8]} 16... bxc6
{[%clk 0:02:31.3]} 17. Rhe1 {[%clk 0:02:31.2]} 17... Bc5 {[%clk 0:02:29.5]} 18.
g4 {[%clk 0:02:18]} 18... g6 {[%clk 0:02:27.6]} 19. Nc4 {[%clk 0:02:09.4]} 19...
Rac8 {[%clk 0:01:58.4]} 20. Kc2 {[%clk 0:01:57.4]} 20... Rhe8 {[%clk 0:01:55.3]}
21. Bg5 {[%clk 0:01:54.2]} 21... Kf7 {[%clk 0:01:53.8]} 22. Re2 {[%clk
0:01:49.8]} 22... Kg7 {[%clk 0:01:51.3]} 23. gxf5 {[%clk 0:01:46]} 23... gxf5
{[%clk 0:01:49.9]} 24. Rg1 {[%clk 0:01:46.1]} 24... Kf7 {[%clk 0:01:49]} 25. Bh6
{[%clk 0:01:45.8]} 25... Rg8 {[%clk 0:01:47.8]} 26. Rxg8 {[%clk 0:01:44.5]}
26... Rxg8 {[%clk 0:01:46.7]} 27. Ne5+ {[%clk 0:01:45.1]} 27... Ke6 {[%clk
0:01:45.5]} 28. Nxc6 {[%clk 0:01:45.4]} 28... Rg2 {[%clk 0:01:45.5]} 29. Nd4+
{[%clk 0:01:41.3]} 29... Bxd4 {[%clk 0:01:44.2]} 30. cxd4 {[%clk 0:01:42.2]}
30... Rxh2 {[%clk 0:01:43.8]} 31. Bg7 {[%clk 0:01:41]} 31... e3 {[%clk
0:01:42.4]} 32. Be5 {[%clk 0:01:36]} 32... Rxf2 {[%clk 0:01:37.3]} 33. Kd1
{[%clk 0:01:36.4]} 33... Rf3 {[%clk 0:01:27.8]} 34. Rh2 {[%clk 0:01:33.3]} 34...
f4 {[%clk 0:01:25.2]} 35. Rxh7 {[%clk 0:01:28.7]} 35... Kf5 {[%clk 0:01:22.8]}
36. Ke2 {[%clk 0:01:18.5]} 36... Ke4 {[%clk 0:01:20.7]} 37. Rh2 {[%clk 0:01:17]}
37... Ne7 {[%clk 0:01:19.3]} 38. Bb8 {[%clk 0:01:15.3]} 38... Nf5 {[%clk
0:01:19]} 39. Bxa7 {[%clk 0:01:02.5]} 39... Ng3+ {[%clk 0:01:18.4]} 40. Kd1
{[%clk 0:01:03.2]} 40... Rf1+ {[%clk 0:01:16.5]} 41. Kc2 {[%clk 0:01:03.4]}
41... e2 {[%clk 0:01:16]} 0-1

[Event "Early-Titled-Tuesday-Blitz-October-24-2023"]
[Site "Chess.com"]
[Date "2023.10.24"]
[Round "4"]
[White "Flameboard08"]
[Black "rocket10jan"]
[Result "1-0"]
[WhiteElo "2598"]
[BlackElo "2382"]
[TimeControl "180+1"]
[EndTime "8:36:02 PDT"]
[Termination "Flameboard08 won by resignation"]

1. f4 {[%clk 0:03:00.9]} 1... d5 {[%clk 0:02:58.5]} 2. Nf3 {[%clk 0:02:59.4]}
2... Nf6 {[%clk 0:02:58.8]} 3. d3 {[%clk 0:02:57.2]} 3... c5 {[%clk 0:02:55.2]}
4. g3 {[%clk 0:02:57.7]} 4... Nc6 {[%clk 0:02:55.1]} 5. Bg2 {[%clk 0:02:58]}
5... g6 {[%clk 0:02:55.1]} 6. O-O {[%clk 0:02:58.5]} 6... Bg7 {[%clk 0:02:55.7]}
7. Nbd2 {[%clk 0:02:58.9]} 7... O-O {[%clk 0:02:55.9]} 8. e4 {[%clk 0:02:59.6]}
8... e6 {[%clk 0:02:36.5]} 9. c3 {[%clk 0:02:57.2]} 9... b5 {[%clk 0:02:33.4]}
10. e5 {[%clk 0:02:54.8]} 10... Nd7 {[%clk 0:02:32.6]} 11. d4 {[%clk 0:02:55.2]}
11... b4 {[%clk 0:02:28.7]} 12. h4 {[%clk 0:02:51.6]} 12... Qa5 {[%clk 0:02:09]}
13. Nb3 {[%clk 0:02:47.3]} 13... Qb6 {[%clk 0:02:09.1]} 14. Be3 {[%clk
0:02:47.9]} 14... cxd4 {[%clk 0:02:05.9]} 15. Nbxd4 {[%clk 0:02:43.1]} 15...
Nxd4 {[%clk 0:01:59.4]} 16. Bxd4 {[%clk 0:02:38.1]} 16... Qb5 {[%clk 0:01:55.4]}
17. h5 {[%clk 0:02:37.1]} 17... Ba6 {[%clk 0:01:53.8]} 18. hxg6 {[%clk
0:02:29.7]} 18... hxg6 {[%clk 0:01:52.4]} 19. Rf2 {[%clk 0:02:29]} 19... bxc3
{[%clk 0:01:49.9]} 20. bxc3 {[%clk 0:02:28.7]} 20... Rfc8 {[%clk 0:01:44.1]} 21.
Ng5 {[%clk 0:02:26]} 21... Qd3 {[%clk 0:01:36.6]} 22. Qg4 {[%clk 0:02:19.6]}
22... Qf5 {[%clk 0:01:32.5]} 23. Qh4 {[%clk 0:02:19.8]} 23... Rab8 {[%clk
0:01:06.1]} 24. Bh3 {[%clk 0:01:48.5]} 24... Rb1+ {[%clk 0:00:57.6]} 25. Kg2
{[%clk 0:01:48.7]} 25... Qd3 {[%clk 0:00:50.3]} 26. Rxb1 {[%clk 0:01:47.3]}
26... Qxb1 {[%clk 0:00:51.2]} 27. Bxe6 {[%clk 0:01:46.2]} 27... fxe6 {[%clk
0:00:42.7]} 28. Qh7+ {[%clk 0:01:45.3]} 28... Kf8 {[%clk 0:00:43.2]} 29. Nxe6+
{[%clk 0:01:45.7]} 29... Ke7 {[%clk 0:00:42.4]} 30. Nxg7 {[%clk 0:01:28.6]}
30... Qe4+ {[%clk 0:00:42]} 31. Kh2 {[%clk 0:01:29.2]} 31... Rf8 {[%clk
0:00:31.4]} 32. Nf5+ {[%clk 0:01:27.5]} 32... Kd8 {[%clk 0:00:31.3]} 33. Qe7+
{[%clk 0:01:27.6]} 33... Kc7 {[%clk 0:00:31.1]} 34. Qd6+ {[%clk 0:01:25.5]} 1-0

[Event "Early-Titled-Tuesday-Blitz-October-24-2023"]
[Site "Chess.com"]
[Date "2023.10.24"]
[Round "4"]
[White "Doomfist26"]
[Black "Kostukov_Alex"]
[Result "1-0"]
[WhiteElo "2631"]
[BlackElo "2427"]
[TimeControl "180+1"]
[EndTime "8:36:06 PDT"]
[Termination "Doomfist26 won by resignation"]

1. e4 {[%clk 0:03:00.9]} 1... c5 {[%clk 0:02:58.5]} 2. Nf3 {[%clk 0:03:00.6]}
2... g6 {[%clk 0:02:58]} 3. c4 {[%clk 0:02:59.9]} 3... Bg7 {[%clk 0:02:57.8]} 4.
d4 {[%clk 0:03:00.5]} 4... cxd4 {[%clk 0:02:57.6]} 5. Nxd4 {[%clk 0:03:01.4]}
5... Nc6 {[%clk 0:02:57.6]} 6. Be3 {[%clk 0:03:02]} 6... Nf6 {[%clk 0:02:57.8]}
7. Nc3 {[%clk 0:03:02.1]} 7... Nxd4 {[%clk 0:02:53.1]} 8. Bxd4 {[%clk
0:03:02.2]} 8... Qa5 {[%clk 0:02:53.6]} 9. Be2 {[%clk 0:03:00.3]} 9... O-O
{[%clk 0:02:52.1]} 10. O-O {[%clk 0:03:00.5]} 10... d6 {[%clk 0:02:51.3]} 11. f3
{[%clk 0:02:53.6]} 11... Be6 {[%clk 0:02:50]} 12. b3 {[%clk 0:02:50.8]} 12...
Rfc8 {[%clk 0:02:48.8]} 13. Rc1 {[%clk 0:02:49.4]} 13... a6 {[%clk 0:02:47.9]}
14. Qe1 {[%clk 0:02:47]} 14... Nd7 {[%clk 0:02:38.2]} 15. Bxg7 {[%clk
0:02:42.9]} 15... Kxg7 {[%clk 0:02:38.1]} 16. f4 {[%clk 0:02:41.2]} 16... f6
{[%clk 0:02:23.3]} 17. f5 {[%clk 0:02:37.2]} 17... Bf7 {[%clk 0:02:23.4]} 18.
Qf2 {[%clk 0:02:27.6]} 18... g5 {[%clk 0:02:18.7]} 19. Bd1 {[%clk 0:02:17.8]}
19... b5 {[%clk 0:02:07.5]} 20. Nd5 {[%clk 0:01:55.3]} 20... Bxd5 {[%clk
0:01:59.2]} 21. exd5 {[%clk 0:01:56.2]} 21... bxc4 {[%clk 0:01:55]} 22. bxc4
{[%clk 0:01:57.1]} 22... Qc5 {[%clk 0:01:52.5]} 23. Qxc5 {[%clk 0:01:55.8]}
23... Rxc5 {[%clk 0:01:52.4]} 24. Be2 {[%clk 0:01:41.3]} 24... Ne5 {[%clk
0:01:35.6]} 25. Rb1 {[%clk 0:01:41.6]} 25... Rac8 {[%clk 0:01:11.9]} 26. Rb7
{[%clk 0:01:36.5]} 26... R8c7 {[%clk 0:01:12]} 27. Rfb1 {[%clk 0:01:37.2]} 27...
Nxc4 {[%clk 0:00:57.4]} 28. Rxc7 {[%clk 0:01:37]} 28... Rxc7 {[%clk 0:00:52.5]}
29. Rc1 {[%clk 0:01:37.2]} 29... Rb7 {[%clk 0:00:48.3]} 30. Bxc4 {[%clk
0:01:35]} 30... Rb2 {[%clk 0:00:43.8]} 31. Bb3 {[%clk 0:01:32.1]} 31... a5
{[%clk 0:00:41.7]} 32. Rc2 {[%clk 0:01:27.8]} 32... Rb1+ {[%clk 0:00:40.6]} 33.
Kf2 {[%clk 0:01:28.5]} 33... g4 {[%clk 0:00:38.5]} 34. Rc4 {[%clk 0:01:25.3]}
34... h5 {[%clk 0:00:37.8]} 35. Ra4 {[%clk 0:01:25]} 35... h4 {[%clk 0:00:33.3]}
36. Rxg4+ {[%clk 0:01:24.1]} 1-0

[Event "Early-Titled-Tuesday-Blitz-October-24-2023"]
[Site "Chess.com"]
[Date "2023.10.24"]
[Round "4"]
[White "Fraler15"]
[Black "mbachez"]
[Result "0-1"]
[WhiteElo "2258"]
[BlackElo "2467"]
[TimeControl "180+1"]
[EndTime "8:36:08 PDT"]
[Termination "mbachez won by resignation"]

1. e4 {[%clk 0:03:00.9]} 1... c6 {[%clk 0:02:38.6]} 2. d4 {[%clk 0:02:59.7]}
2... d5 {[%clk 0:02:37.2]} 3. Nc3 {[%clk 0:03:00.3]} 3... dxe4 {[%clk
0:02:37.3]} 4. Nxe4 {[%clk 0:03:01.2]} 4... Nf6 {[%clk 0:02:37.1]} 5. Nxf6+
{[%clk 0:03:01.4]} 5... exf6 {[%clk 0:02:36.6]} 6. c3 {[%clk 0:03:02]} 6... Bd6
{[%clk 0:02:35.7]} 7. Bd3 {[%clk 0:03:02.2]} 7... O-O {[%clk 0:02:35.6]} 8. Qc2
{[%clk 0:03:00.6]} 8... Re8+ {[%clk 0:02:35.8]} 9. Ne2 {[%clk 0:03:01.2]} 9...
h5 {[%clk 0:02:33.8]} 10. Be3 {[%clk 0:03:01.3]} 10... Nd7 {[%clk 0:02:33]} 11.
O-O-O {[%clk 0:03:01]} 11... Nf8 {[%clk 0:02:33.2]} 12. Kb1 {[%clk 0:03:01]}
12... b5 {[%clk 0:02:32.4]} 13. Bc1 {[%clk 0:02:58.1]} 13... Be6 {[%clk
0:02:32.2]} 14. f4 {[%clk 0:02:57.1]} 14... a5 {[%clk 0:02:30.7]} 15. Ng3 {[%clk
0:02:56]} 15... b4 {[%clk 0:02:23.1]} 16. Nxh5 {[%clk 0:02:20.3]} 16... Bg4
{[%clk 0:02:20.9]} 17. Ng3 {[%clk 0:02:14.9]} 17... Bxd1 {[%clk 0:02:18.2]} 18.
Rxd1 {[%clk 0:02:08.6]} 18... bxc3 {[%clk 0:02:18.3]} 19. Qxc3 {[%clk
0:02:09.5]} 19... Qb8 {[%clk 0:02:11.8]} 20. Nf5 {[%clk 0:02:07.9]} 20... Bxf4
{[%clk 0:02:09.6]} 21. Bc4 {[%clk 0:01:58.6]} 21... Bxc1 {[%clk 0:02:08]} 22.
Rxc1 {[%clk 0:01:57.7]} 22... Qf4 {[%clk 0:02:07]} 23. Qd3 {[%clk 0:01:49.5]}
23... Rad8 {[%clk 0:02:01.9]} 24. Qc2 {[%clk 0:01:13.5]} 24... Ng6 {[%clk
0:01:52]} 25. Rf1 {[%clk 0:01:05.4]} 25... Qe4 {[%clk 0:01:48.4]} 26. Bd3 {[%clk
0:01:03.5]} 26... Qe1+ {[%clk 0:01:48.1]} 27. Rxe1 {[%clk 0:00:57.8]} 27...
Rxe1+ {[%clk 0:01:46.7]} 28. Qc1 {[%clk 0:00:58.7]} 28... Rxc1+ {[%clk
0:01:46.6]} 29. Kxc1 {[%clk 0:00:59.6]} 29... c5 {[%clk 0:01:39.6]} 30. a3
{[%clk 0:00:49.4]} 30... cxd4 {[%clk 0:01:38]} 31. b4 {[%clk 0:00:49.6]} 31...
Ne5 {[%clk 0:01:37.7]} 32. Be4 {[%clk 0:00:44.6]} 32... axb4 {[%clk 0:01:37.5]}
33. axb4 {[%clk 0:00:44.6]} 33... Rb8 {[%clk 0:01:36.3]} 34. Ne7+ {[%clk
0:00:43.7]} 34... Kf8 {[%clk 0:01:35.8]} 35. Nd5 {[%clk 0:00:44.6]} 35... Nc6
{[%clk 0:01:33.2]} 36. b5 {[%clk 0:00:35.9]} 36... Rxb5 {[%clk 0:01:31.3]} 37.
Kd2 {[%clk 0:00:35.4]} 37... Ne5 {[%clk 0:01:29.5]} 0-1

[Event "Early-Titled-Tuesday-Blitz-October-24-2023"]
[Site "Chess.com"]
[Date "2023.10.24"]
[Round "4"]
[White "spotbet"]
[Black "zverr1"]
[Result "0-1"]
[WhiteElo "2317"]
[BlackElo "2511"]
[TimeControl "180+1"]
[EndTime "8:36:10 PDT"]
[Termination "zverr1 won by resignation"]

1. e4 {[%clk 0:03:00.9]} 1... c5 {[%clk 0:02:59.8]} 2. Nf3 {[%clk 0:03:00.2]}
2... g6 {[%clk 0:03:00.1]} 3. d4 {[%clk 0:02:55.9]} 3... cxd4 {[%clk 0:03:01]}
4. Qxd4 {[%clk 0:02:55.6]} 4... Nf6 {[%clk 0:03:01.4]} 5. e5 {[%clk 0:02:55.8]}
5... Nc6 {[%clk 0:03:01.5]} 6. Qd1 {[%clk 0:02:55]} 6... Nxe5 {[%clk 0:02:54]}
7. Nxe5 {[%clk 0:02:52.9]} 7... Qa5+ {[%clk 0:02:53.7]} 8. Bd2 {[%clk
0:02:52.1]} 8... Qxe5+ {[%clk 0:02:54.2]} 9. Be2 {[%clk 0:02:52.8]} 9... Bg7
{[%clk 0:02:44.3]} 10. Bc3 {[%clk 0:02:44.1]} 10... Qc7 {[%clk 0:02:31.7]} 11.
O-O {[%clk 0:02:30.4]} 11... O-O {[%clk 0:02:31.3]} 12. Nd2 {[%clk 0:02:18.3]}
12... d5 {[%clk 0:02:18.9]} 13. f4 {[%clk 0:02:14.1]} 13... Qb6+ {[%clk
0:01:24]} 14. Kh1 {[%clk 0:02:13.8]} 14... Bf5 {[%clk 0:01:21.5]} 15. Nf3 {[%clk
0:02:10.1]} 15... Ne4 {[%clk 0:01:13.9]} 16. Bxg7 {[%clk 0:02:08.8]} 16... Kxg7
{[%clk 0:01:14.3]} 17. Qd4+ {[%clk 0:02:08.4]} 17... Qxd4 {[%clk 0:01:13.4]} 18.
Nxd4 {[%clk 0:02:09.3]} 18... Rac8 {[%clk 0:00:48]} 19. c3 {[%clk 0:02:03.9]}
19... a6 {[%clk 0:00:40.7]} 20. g4 {[%clk 0:01:57.6]} 20... Bd7 {[%clk
0:00:39.9]} 21. Rad1 {[%clk 0:01:53.7]} 21... e6 {[%clk 0:00:32.8]} 22. g5
{[%clk 0:01:52.3]} 22... Rfd8 {[%clk 0:00:27.7]} 23. Kg2 {[%clk 0:01:51.3]}
23... Nd6 {[%clk 0:00:22.4]} 24. Nf3 {[%clk 0:01:35.6]} 24... Bb5 {[%clk
0:00:20.6]} 25. Kf2 {[%clk 0:01:33]} 25... Bxe2 {[%clk 0:00:17.4]} 26. Kxe2
{[%clk 0:01:33.3]} 26... Rc4 {[%clk 0:00:13.7]} 27. Ne5 {[%clk 0:01:32.5]} 27...
Re4+ {[%clk 0:00:13]} 28. Kf3 {[%clk 0:01:32.6]} 28... Nc4 {[%clk 0:00:10.4]}
29. Rb1 {[%clk 0:01:27.5]} 29... Nd2+ {[%clk 0:00:09.9]} 0-1

[Event "Early-Titled-Tuesday-Blitz-October-24-2023"]
[Site "Chess.com"]
[Date "2023.10.24"]
[Round "4"]
[White "twitchTriniCupid"]
[Black "Barmen_EV"]
[Result "1-0"]
[WhiteElo "2327"]
[BlackElo "2494"]
[TimeControl "180+1"]
[EndTime "8:36:11 PDT"]
[Termination "twitchTriniCupid won by checkmate"]

1. d4 {[%clk 0:03:00.9]} 1... Nf6 {[%clk 0:02:59.3]} 2. Nf3 {[%clk 0:03:00.8]}
2... e6 {[%clk 0:02:57.2]} 3. Bf4 {[%clk 0:02:58.9]} 3... d5 {[%clk 0:02:55.7]}
4. e3 {[%clk 0:02:59.3]} 4... Bd6 {[%clk 0:02:53.7]} 5. c3 {[%clk 0:02:58.5]}
5... O-O {[%clk 0:02:52.4]} 6. Nbd2 {[%clk 0:02:58.4]} 6... c5 {[%clk
0:02:52.8]} 7. Bd3 {[%clk 0:02:58.3]} 7... Qc7 {[%clk 0:02:50.9]} 8. Bg5 {[%clk
0:02:56.2]} 8... Nbd7 {[%clk 0:02:47.5]} 9. O-O {[%clk 0:02:50.7]} 9... h6
{[%clk 0:02:47]} 10. Bh4 {[%clk 0:02:50.3]} 10... g5 {[%clk 0:02:41.4]} 11. Bg3
{[%clk 0:02:50.3]} 11... e5 {[%clk 0:02:40.9]} 12. Nxe5 {[%clk 0:02:49.4]} 12...
Nxe5 {[%clk 0:02:41.8]} 13. dxe5 {[%clk 0:02:49.4]} 13... Bxe5 {[%clk
0:02:42.2]} 14. f4 {[%clk 0:02:28]} 14... Bd6 {[%clk 0:02:27.3]} 15. fxg5 {[%clk
0:02:22]} 15... Bxg3 {[%clk 0:02:27.1]} 16. Rxf6 {[%clk 0:01:42.6]} 16... Bxh2+
{[%clk 0:02:25.8]} 17. Kh1 {[%clk 0:01:42.7]} 17... Be5 {[%clk 0:02:16.5]} 18.
Qh5 {[%clk 0:01:34.9]} 18... Bxf6 {[%clk 0:01:07.4]} 19. Qxh6 {[%clk 0:01:16.7]}
19... Rd8 {[%clk 0:00:36.5]} 20. Bh7+ {[%clk 0:01:15.6]} 20... Kh8 {[%clk
0:00:35.9]} 21. Bg6+ {[%clk 0:01:15.6]} 21... Kg8 {[%clk 0:00:36.2]} 22. Bh7+
{[%clk 0:01:08.7]} 22... Kh8 {[%clk 0:00:36.5]} 23. gxf6 {[%clk 0:01:09.3]}
23... Qf4 {[%clk 0:00:14.1]} 24. Qg7# {[%clk 0:01:05.8]} 1-0